[Event "GrandPrix_29.05"]
[Site "Chess.com"]
[Date "2020.05.29"]
[Round "6"]
[White "RovenVogel"]
[Black "ZoranRunic1"]
[Result "0-1"]
[WhiteElo "2278"]
[BlackElo "2326"]
[TimeControl "600+2"]
[EndTime "12:04:57 PDT"]
[Termination "ZoranRunic1 won on time"]

1. d4 {[%clk 0:10:01.9]} 1... Nf6 {[%clk 0:09:59.1]} 2. c4 {[%clk 0:10:01.8]}
2... g6 {[%clk 0:09:59.9]} 3. Nc3 {[%clk 0:10:01.3]} 3... Bg7 {[%clk 0:09:59.7]}
4. Nf3 {[%clk 0:09:56.8]} 4... d6 {[%clk 0:09:59.7]} 5. g3 {[%clk 0:09:57.2]}
5... O-O {[%clk 0:09:59.2]} 6. Bg2 {[%clk 0:09:57.5]} 6... Nc6 {[%clk 0:10:00]}
7. O-O {[%clk 0:09:56.8]} 7... a6 {[%clk 0:10:00.2]} 8. b3 {[%clk 0:09:56]} 8...
Rb8 {[%clk 0:09:44.2]} 9. Bb2 {[%clk 0:09:34.6]} 9... b5 {[%clk 0:09:41.5]} 10.
cxb5 {[%clk 0:09:34.7]} 10... axb5 {[%clk 0:09:40.2]} 11. Rc1 {[%clk 0:09:36.6]}
11... b4 {[%clk 0:09:34.5]} 12. Na4 {[%clk 0:09:35.8]} 12... Na7 {[%clk
0:09:32.2]} 13. Qc2 {[%clk 0:09:10]} 13... c6 {[%clk 0:08:49.6]} 14. e4 {[%clk
0:09:00.3]} 14... Ba6 {[%clk 0:08:28.5]} 15. Rfe1 {[%clk 0:08:44]} 15... Bb5
{[%clk 0:08:26.2]} 16. e5 {[%clk 0:08:02.8]} 16... Nd5 {[%clk 0:07:59.6]} 17. e6
{[%clk 0:07:57.6]} 17... Bh6 {[%clk 0:06:15.8]} 18. Rcd1 {[%clk 0:06:51.3]}
18... f5 {[%clk 0:05:33.3]} 19. Nd2 {[%clk 0:06:14.3]} 19... Rf6 {[%clk
0:05:00.7]} 20. Nc4 {[%clk 0:05:59.8]} 20... Qc8 {[%clk 0:04:22.9]} 21. Na5
{[%clk 0:05:41.7]} 21... Qa6 {[%clk 0:03:58.2]} 22. Nc4 {[%clk 0:05:36.4]} 22...
f4 {[%clk 0:03:49]} 23. Rd3 {[%clk 0:02:55.2]} 23... Rbf8 {[%clk 0:03:44.1]} 24.
Be4 {[%clk 0:01:47.1]} 24... Nc8 {[%clk 0:02:06.5]} 25. f3 {[%clk 0:01:36.4]}
25... fxg3 {[%clk 0:01:39.2]} 26. hxg3 {[%clk 0:01:36.7]} 26... Nc7 {[%clk
0:01:39.9]} 27. d5 {[%clk 0:00:57.5]} 27... cxd5 {[%clk 0:01:37.6]} 28. Rxd5
{[%clk 0:00:56.8]} 28... Nxd5 {[%clk 0:01:32.1]} 29. Bxd5 {[%clk 0:00:57.1]}
29... Rxf3 {[%clk 0:01:24.6]} 30. Bxf3 {[%clk 0:00:57.6]} 30... Rxf3 {[%clk
0:01:24.3]} 31. Kh2 {[%clk 0:00:45.6]} 31... Bxc4 {[%clk 0:00:56.8]} 32. bxc4
{[%clk 0:00:35.2]} 32... Qc6 {[%clk 0:00:49.8]} 33. Ba1 {[%clk 0:00:30.2]} 33...
Be3 {[%clk 0:00:45.5]} 34. Re2 {[%clk 0:00:28.7]} 34... Bg5 {[%clk 0:00:40.8]}
35. Rf2 {[%clk 0:00:21.6]} 35... Be3 {[%clk 0:00:27]} 36. Rg2 {[%clk 0:00:16.6]}
36... Bg5 {[%clk 0:00:23]} 37. Qe2 {[%clk 0:00:11.2]} 37... Re3 {[%clk
0:00:20.9]} 38. Qc2 {[%clk 0:00:10.2]} 38... Qe4 {[%clk 0:00:19.4]} 39. Qxe4
{[%clk 0:00:05.3]} 39... Rxe4 {[%clk 0:00:20]} 40. c5 {[%clk 0:00:07.2]} 40...
Rxe6 {[%clk 0:00:14.5]} 41. Rb2 {[%clk 0:00:06.9]} 41... Re4 {[%clk 0:00:12.2]}
42. Rc2 {[%clk 0:00:04.5]} 42... Kf7 {[%clk 0:00:11.5]} 43. c6 {[%clk
0:00:04.9]} 43... Bf6 {[%clk 0:00:10.2]} 44. Bxf6 {[%clk 0:00:04.6]} 44... Kxf6
{[%clk 0:00:10.6]} 45. Rf2+ {[%clk 0:00:05.7]} 45... Kg7 {[%clk 0:00:11.3]} 46.
Nb2 {[%clk 0:00:04.7]} 46... Re3 {[%clk 0:00:10.6]} 47. Nc4 {[%clk 0:00:05.1]}
47... Rc3 {[%clk 0:00:11.1]} 48. Na5 {[%clk 0:00:06]} 48... e5 {[%clk
0:00:10.5]} 49. Rb2 {[%clk 0:00:05.7]} 49... Rc5 {[%clk 0:00:11.2]} 50. Nb7
{[%clk 0:00:05.4]} 50... Rxc6 {[%clk 0:00:11.9]} 51. Rxb4 {[%clk 0:00:06.4]}
51... h5 {[%clk 0:00:12.9]} 52. a4 {[%clk 0:00:05.4]} 52... d5 {[%clk
0:00:13.8]} 53. Rb5 {[%clk 0:00:05.7]} 53... Ne7 {[%clk 0:00:10.6]} 54. Nc5
{[%clk 0:00:06.7]} 54... Rc8 {[%clk 0:00:03.7]} 55. a5 {[%clk 0:00:07.5]} 55...
Ra8 {[%clk 0:00:02.2]} 56. a6 {[%clk 0:00:08.1]} 56... Kf6 {[%clk 0:00:03.4]}
57. Rb6+ {[%clk 0:00:08.9]} 57... Kf5 {[%clk 0:00:04.6]} 58. Rb7 {[%clk
0:00:10.8]} 58... Nc6 {[%clk 0:00:04.9]} 59. Rf7+ {[%clk 0:00:11.3]} 59... Kg4
{[%clk 0:00:05.2]} 60. Rc7 {[%clk 0:00:13.2]} 60... Nd4 {[%clk 0:00:05.6]} 61.
Rb7 {[%clk 0:00:11.7]} 61... Nf3+ {[%clk 0:00:04.2]} 62. Kg2 {[%clk 0:00:11.8]}
62... g5 {[%clk 0:00:05.5]} 63. a7 {[%clk 0:00:11.3]} 63... h4 {[%clk
0:00:06.4]} 64. Nd7 {[%clk 0:00:10.2]} 64... h3+ {[%clk 0:00:06.5]} 65. Kf2
{[%clk 0:00:10.5]} 65... h2 {[%clk 0:00:06.2]} 66. Kg2 {[%clk 0:00:11.2]} 66...
Rh8 {[%clk 0:00:06]} 67. Nf6+ {[%clk 0:00:11.4]} 67... Kf5 {[%clk 0:00:06]} 68.
Kh1 {[%clk 0:00:09.6]} 68... Rc8 {[%clk 0:00:04.8]} 69. Rb1 {[%clk 0:00:06.9]}
69... Kxf6 {[%clk 0:00:05]} 70. Kg2 {[%clk 0:00:06.4]} 70... g4 {[%clk
0:00:04.3]} 0-1

[Event "GrandPrix_29.05"]
[Site "Chess.com"]
[Date "2020.05.29"]
[Round "6"]
[White "Shahinyan_ChessMood"]
[Black "Volodar_Murzin"]
[Result "1/2-1/2"]
[WhiteElo "2391"]
[BlackElo "2465"]
[TimeControl "600+2"]
[EndTime "12:04:58 PDT"]
[Termination "Game drawn by repetition"]

1. e4 {[%clk 0:10:01.9]} 1... c6 {[%clk 0:09:56.5]} 2. d4 {[%clk 0:09:54.7]}
2... d5 {[%clk 0:09:58.4]} 3. exd5 {[%clk 0:09:55.9]} 3... cxd5 {[%clk
0:09:55.3]} 4. Bd3 {[%clk 0:09:57.3]} 4... Nc6 {[%clk 0:09:54.8]} 5. c3 {[%clk
0:09:58.6]} 5... g6 {[%clk 0:09:55.1]} 6. h3 {[%clk 0:09:48.5]} 6... Bf5 {[%clk
0:09:54.1]} 7. Nf3 {[%clk 0:09:40.1]} 7... e6 {[%clk 0:09:49.4]} 8. Be2 {[%clk
0:09:35.7]} 8... Nf6 {[%clk 0:09:40.7]} 9. Nbd2 {[%clk 0:09:31.6]} 9... h5
{[%clk 0:09:40]} 10. Nf1 {[%clk 0:09:06.6]} 10... Bd6 {[%clk 0:09:37.4]} 11. Bg5
{[%clk 0:09:02.4]} 11... Be7 {[%clk 0:09:31.8]} 12. Ne3 {[%clk 0:08:51.5]} 12...
Ne4 {[%clk 0:09:20.4]} 13. Bxe7 {[%clk 0:08:43.2]} 13... Qxe7 {[%clk 0:09:19.7]}
14. Qa4 {[%clk 0:08:30.8]} 14... Kf8 {[%clk 0:08:49.7]} 15. Nd2 {[%clk
0:06:54.5]} 15... Nxd2 {[%clk 0:08:42.4]} 16. Kxd2 {[%clk 0:06:56.4]} 16... h4
{[%clk 0:08:44]} 17. Rag1 {[%clk 0:06:29.9]} 17... Rc8 {[%clk 0:08:16.8]} 18.
Bb5 {[%clk 0:06:11.1]} 18... a6 {[%clk 0:07:56.9]} 19. Bxc6 {[%clk 0:06:00.6]}
19... Rxc6 {[%clk 0:07:56.6]} 20. Nxf5 {[%clk 0:06:00.7]} 20... gxf5 {[%clk
0:07:55.6]} 21. g4 {[%clk 0:06:00.4]} 21... hxg3 {[%clk 0:07:47.9]} 22. Rxg3
{[%clk 0:05:59.4]} 22... Qd6 {[%clk 0:07:38.4]} 23. Ke2 {[%clk 0:05:32.1]} 23...
Ke7 {[%clk 0:07:30.1]} 24. h4 {[%clk 0:05:28.6]} 24... b5 {[%clk 0:07:18.7]} 25.
Qd1 {[%clk 0:05:18.3]} 25... Qf4 {[%clk 0:06:44.2]} 26. h5 {[%clk 0:04:59.7]}
26... b4 {[%clk 0:05:50.5]} 27. Rhh3 {[%clk 0:04:01.7]} 27... bxc3 {[%clk
0:05:37.6]} 28. bxc3 {[%clk 0:04:03.6]} 28... Rb6 {[%clk 0:05:24.7]} 29. Kf1
{[%clk 0:03:33.9]} 29... Rb2 {[%clk 0:04:33.6]} 30. Qf3 {[%clk 0:03:31.6]} 30...
Qxf3 {[%clk 0:04:01.9]} 31. Rxf3 {[%clk 0:03:33.5]} 31... Rxa2 {[%clk
0:04:03.2]} 32. h6 {[%clk 0:03:34]} 32... Rb2 {[%clk 0:03:58.4]} 33. h7 {[%clk
0:03:29.2]} 33... Rbb8 {[%clk 0:03:52.7]} 34. Rfg3 {[%clk 0:03:30.5]} 34... a5
{[%clk 0:03:47.5]} 35. Ke2 {[%clk 0:03:31.9]} 35... a4 {[%clk 0:03:47.5]} 36.
Kd3 {[%clk 0:03:32.8]} 36... a3 {[%clk 0:03:30.9]} 37. Rg1 {[%clk 0:03:33.1]}
37... a2 {[%clk 0:03:32.4]} 38. Ra1 {[%clk 0:02:20.4]} 38... Rb2 {[%clk
0:03:29.9]} 39. f4 {[%clk 0:01:55.6]} 39... Kf8 {[%clk 0:03:01.1]} 40. Ke3
{[%clk 0:01:22.8]} 40... Rc2 {[%clk 0:02:48.4]} 41. Kd3 {[%clk 0:01:21.7]} 41...
Rg2 {[%clk 0:02:46]} 42. c4 {[%clk 0:01:12.9]} 42... dxc4+ {[%clk 0:02:03.2]}
43. Kxc4 {[%clk 0:01:14.8]} 43... Kg7 {[%clk 0:02:03.8]} 44. d5 {[%clk
0:00:53.5]} 44... exd5+ {[%clk 0:01:41.5]} 45. Kxd5 {[%clk 0:00:55.4]} 45...
Rxh7 {[%clk 0:01:41.9]} 46. Ra3 {[%clk 0:00:50.9]} 46... Rhh2 {[%clk 0:01:36.5]}
47. Ke5 {[%clk 0:00:52.2]} 47... Rb2 {[%clk 0:01:07.5]} 48. Kxf5 {[%clk
0:00:41.1]} 48... Rhg2 {[%clk 0:00:58.1]} 49. Ra5 {[%clk 0:00:32.7]} 49... Rbe2
{[%clk 0:00:41]} 50. Rh1 {[%clk 0:00:12.8]} 50... Rh2 {[%clk 0:00:31.9]} 51.
Rg1+ {[%clk 0:00:09.2]} 51... Reg2 {[%clk 0:00:26.5]} 52. Rxg2+ {[%clk 0:00:10]}
52... Rxg2 {[%clk 0:00:28.4]} 53. Ra8 {[%clk 0:00:08.2]} 53... Rf2 {[%clk
0:00:24.7]} 54. Ra6 {[%clk 0:00:07.4]} 54... Kf8 {[%clk 0:00:22]} 55. Ra7 {[%clk
0:00:04]} 55... Ke8 {[%clk 0:00:22.5]} 56. Kg5 {[%clk 0:00:04.4]} 56... Kd8
{[%clk 0:00:18.9]} 57. f5 {[%clk 0:00:05.5]} 57... Kc8 {[%clk 0:00:19.9]} 58.
Kf6 {[%clk 0:00:06.7]} 58... Kb8 {[%clk 0:00:20.1]} 59. Ra3 {[%clk 0:00:04.8]}
59... Kb7 {[%clk 0:00:20.8]} 60. Kg7 {[%clk 0:00:03.9]} 60... Rxf5 {[%clk
0:00:18.6]} 61. Rxa2 {[%clk 0:00:05.2]} 61... Kc6 {[%clk 0:00:19.9]} 62. Rd2
{[%clk 0:00:05.5]} 62... Rf1 {[%clk 0:00:19.1]} 63. Kh6 {[%clk 0:00:05.3]} 63...
Rf5 {[%clk 0:00:16]} 64. Kg7 {[%clk 0:00:05.6]} 64... Kc7 {[%clk 0:00:17.6]} 65.
Rd1 {[%clk 0:00:05.9]} 65... Rf4 {[%clk 0:00:17.2]} 66. Rd2 {[%clk 0:00:07]}
66... Rf3 {[%clk 0:00:18.3]} 67. Kh6 {[%clk 0:00:07.1]} 67... Rf1 {[%clk
0:00:19.2]} 68. Kg5 {[%clk 0:00:08.1]} 68... Kc6 {[%clk 0:00:20.5]} 69. Rd4
{[%clk 0:00:08.8]} 69... Kc5 {[%clk 0:00:21.7]} 70. Rf4 {[%clk 0:00:09.8]} 70...
Rxf4 {[%clk 0:00:22.5]} 71. Kxf4 {[%clk 0:00:11.7]} 71... Kd6 {[%clk 0:00:24.2]}
72. Kf5 {[%clk 0:00:13.1]} 72... Ke7 {[%clk 0:00:25.9]} 73. Ke5 {[%clk
0:00:14.7]} 73... f6+ {[%clk 0:00:27.3]} 74. Kf5 {[%clk 0:00:16.2]} 74... Kf7
{[%clk 0:00:29.1]} 75. Kf4 {[%clk 0:00:17.7]} 75... Ke6 {[%clk 0:00:30.9]} 76.
Ke4 {[%clk 0:00:18.8]} 76... f5+ {[%clk 0:00:32.8]} 77. Kf4 {[%clk 0:00:20.2]}
77... Kf6 {[%clk 0:00:34.7]} 78. Kf3 {[%clk 0:00:22]} 78... Ke5 {[%clk
0:00:36.6]} 79. Ke3 {[%clk 0:00:23]} 79... f4+ {[%clk 0:00:38.5]} 80. Kf3 {[%clk
0:00:24.5]} 80... Kf5 {[%clk 0:00:40.4]} 81. Kf2 {[%clk 0:00:25.6]} 81... Ke4
{[%clk 0:00:42.3]} 82. Ke2 {[%clk 0:00:26.7]} 82... f3+ {[%clk 0:00:44.2]} 83.
Kf2 {[%clk 0:00:27.9]} 83... Kf4 {[%clk 0:00:45.9]} 84. Kf1 {[%clk 0:00:29]}
84... Kg3 {[%clk 0:00:46.4]} 85. Kg1 {[%clk 0:00:29.8]} 85... Kg4 {[%clk
0:00:47.1]} 86. Kf2 {[%clk 0:00:30.3]} 86... Kf4 {[%clk 0:00:48.8]} 87. Kf1
{[%clk 0:00:30.2]} 87... Ke3 {[%clk 0:00:49.4]} 88. Ke1 {[%clk 0:00:31.3]} 88...
Ke4 {[%clk 0:00:51.1]} 89. Kf2 {[%clk 0:00:31.7]} 89... Kf4 {[%clk 0:00:53]}
1/2-1/2

[Event "GrandPrix_29.05"]
[Site "Chess.com"]
[Date "2020.05.29"]
[Round "6"]
[White "tsvet2005"]
[Black "jacky72"]
[Result "1-0"]
[WhiteElo "2323"]
[BlackElo "2255"]
[TimeControl "600+2"]
[EndTime "12:04:59 PDT"]
[Termination "tsvet2005 won by checkmate"]

1. d4 {[%clk 0:10:01.9]} 1... Nf6 {[%clk 0:09:59.2]} 2. c4 {[%clk 0:10:03.1]}
2... g6 {[%clk 0:09:59.5]} 3. Nc3 {[%clk 0:10:04.4]} 3... Bg7 {[%clk 0:10:00.8]}
4. e4 {[%clk 0:10:05.1]} 4... d6 {[%clk 0:10:02.7]} 5. Be2 {[%clk 0:10:06.2]}
5... O-O {[%clk 0:10:02.6]} 6. Be3 {[%clk 0:10:06.9]} 6... Na6 {[%clk
0:09:35.8]} 7. Nf3 {[%clk 0:10:07.1]} 7... e5 {[%clk 0:09:35.8]} 8. d5 {[%clk
0:10:07.9]} 8... Ng4 {[%clk 0:09:29.8]} 9. Bg5 {[%clk 0:10:08.3]} 9... f6 {[%clk
0:09:31]} 10. Bh4 {[%clk 0:10:09]} 10... c5 {[%clk 0:09:31.5]} 11. Nd2 {[%clk
0:10:05.5]} 11... Nh6 {[%clk 0:09:31.1]} 12. f3 {[%clk 0:10:05.3]} 12... Nf7
{[%clk 0:09:29.6]} 13. a3 {[%clk 0:10:00.4]} 13... Bd7 {[%clk 0:09:26.3]} 14.
Rb1 {[%clk 0:09:56.2]} 14... b6 {[%clk 0:09:26.8]} 15. b4 {[%clk 0:09:55.8]}
15... Qe8 {[%clk 0:09:26.1]} 16. bxc5 {[%clk 0:09:28.4]} 16... Nxc5 {[%clk
0:09:20]} 17. Nb5 {[%clk 0:09:26.2]} 17... Bxb5 {[%clk 0:09:17.2]} 18. cxb5
{[%clk 0:09:21.5]} 18... f5 {[%clk 0:09:18.5]} 19. O-O {[%clk 0:09:17.8]} 19...
Bh6 {[%clk 0:09:18.7]} 20. exf5 {[%clk 0:09:00.1]} 20... gxf5 {[%clk 0:09:13.3]}
21. Nc4 {[%clk 0:09:01]} 21... Kh8 {[%clk 0:09:01.5]} 22. Qc2 {[%clk 0:08:49]}
22... Qd7 {[%clk 0:08:55]} 23. Kh1 {[%clk 0:08:36]} 23... Rg8 {[%clk 0:08:52.3]}
24. g4 {[%clk 0:08:14.2]} 24... Bg5 {[%clk 0:08:46.1]} 25. Bf2 {[%clk
0:08:04.7]} 25... fxg4 {[%clk 0:08:40.7]} 26. fxg4 {[%clk 0:08:06.6]} 26... Raf8
{[%clk 0:08:37.9]} 27. Bg3 {[%clk 0:07:41.5]} 27... Qe7 {[%clk 0:08:15.4]} 28.
Rf5 {[%clk 0:06:18.7]} 28... Nh6 {[%clk 0:08:12.8]} 29. Nxd6 {[%clk 0:06:17.8]}
29... Nxf5 {[%clk 0:07:56.6]} 30. Nxf5 {[%clk 0:06:18.9]} 30... Qf6 {[%clk
0:07:50]} 31. Rf1 {[%clk 0:06:00.4]} 31... Bf4 {[%clk 0:07:49.7]} 32. Bh4 {[%clk
0:05:52.5]} 32... Qf7 {[%clk 0:07:31.9]} 33. Qc4 {[%clk 0:04:55.9]} 33... Rg6
{[%clk 0:06:43.7]} 34. Be7 {[%clk 0:03:25.7]} 34... Re8 {[%clk 0:06:19.5]} 35.
d6 {[%clk 0:03:22.9]} 35... Qxc4 {[%clk 0:06:14.3]} 36. Bxc4 {[%clk 0:03:24.8]}
36... Rc8 {[%clk 0:04:56.4]} 37. Bf7 {[%clk 0:02:59.1]} 37... Nd7 {[%clk
0:04:55.2]} 38. Bxg6 {[%clk 0:01:56.7]} 38... hxg6 {[%clk 0:04:57.1]} 39. Nh4
{[%clk 0:01:58.1]} 39... Kg7 {[%clk 0:04:51]} 40. Ng2 {[%clk 0:01:58.5]} 40...
Bd2 {[%clk 0:04:43.4]} 41. Rd1 {[%clk 0:01:52.2]} 41... Bc1 {[%clk 0:04:25.4]}
42. a4 {[%clk 0:01:46.1]} 42... Rc4 {[%clk 0:04:26.7]} 43. g5 {[%clk 0:01:41]}
43... Kf7 {[%clk 0:04:04.4]} 44. h4 {[%clk 0:01:38]} 44... Ke6 {[%clk
0:04:04.6]} 45. Kh2 {[%clk 0:01:17.5]} 45... Bf4+ {[%clk 0:04:02.5]} 46. Nxf4+
{[%clk 0:01:10.9]} 46... Rxf4 {[%clk 0:04:04.4]} 47. Kh3 {[%clk 0:00:58.9]}
47... Rxa4 {[%clk 0:04:05.8]} 48. Rg1 {[%clk 0:00:52.1]} 48... Ra3+ {[%clk
0:02:26.9]} 49. Kh2 {[%clk 0:00:47.5]} 49... Kf5 {[%clk 0:02:23.5]} 50. h5
{[%clk 0:00:40.8]} 50... Ra2+ {[%clk 0:02:09.9]} 51. Kh1 {[%clk 0:00:38.1]}
51... Ra4 {[%clk 0:01:35.3]} 52. h6 {[%clk 0:00:36.8]} 52... Rc4 {[%clk
0:01:20.4]} 53. Rf1+ {[%clk 0:00:32.7]} 53... Ke6 {[%clk 0:01:20.9]} 54. Kg2
{[%clk 0:00:30.2]} 54... Rc8 {[%clk 0:01:21.7]} 55. Kf3 {[%clk 0:00:25.4]} 55...
Kd5 {[%clk 0:01:18]} 56. Ke3 {[%clk 0:00:19.7]} 56... Rc3+ {[%clk 0:01:18.3]}
57. Kd2 {[%clk 0:00:20.3]} 57... Rh3 {[%clk 0:01:19.7]} 58. Ra1 {[%clk
0:00:18.7]} 58... Nc5 {[%clk 0:01:12.2]} 59. Rxa7 {[%clk 0:00:17.7]} 59... Ke6
{[%clk 0:01:11.1]} 60. Bf6 {[%clk 0:00:11.3]} 60... Ne4+ {[%clk 0:00:56.6]} 61.
Ke2 {[%clk 0:00:11.5]} 61... Nxf6 {[%clk 0:00:20.8]} 62. gxf6 {[%clk 0:00:13.4]}
62... Rxh6 {[%clk 0:00:18]} 63. f7 {[%clk 0:00:13.5]} 63... Rh8 {[%clk
0:00:19.3]} 64. Re7+ {[%clk 0:00:14.2]} 64... Kf6 {[%clk 0:00:18.6]} 65. Re8
{[%clk 0:00:08.4]} 65... Rh2+ {[%clk 0:00:20]} 66. Ke3 {[%clk 0:00:09.5]} 66...
Kxf7 {[%clk 0:00:21.9]} 67. d7 {[%clk 0:00:10.7]} 67... Rh3+ {[%clk 0:00:21.8]}
68. Ke4 {[%clk 0:00:09.4]} 68... Rh4+ {[%clk 0:00:23.1]} 69. Kxe5 {[%clk
0:00:09.7]} 69... Rh1 {[%clk 0:00:24.1]} 70. d8=Q {[%clk 0:00:07]} 70... Re1+
{[%clk 0:00:25.6]} 71. Kf4 {[%clk 0:00:08.4]} 71... Rxe8 {[%clk 0:00:27.5]} 72.
Qxb6 {[%clk 0:00:09.4]} 72... Re6 {[%clk 0:00:26.9]} 73. Qc7+ {[%clk 0:00:09.4]}
73... Kf6 {[%clk 0:00:28.3]} 74. b6 {[%clk 0:00:09.8]} 74... g5+ {[%clk
0:00:29.8]} 75. Kf3 {[%clk 0:00:10.7]} 75... Kf5 {[%clk 0:00:29.8]} 76. Qf7+
{[%clk 0:00:10.3]} 76... Ke5 {[%clk 0:00:30.7]} 77. Qxe6+ {[%clk 0:00:10.8]}
77... Kxe6 {[%clk 0:00:31.7]} 78. b7 {[%clk 0:00:12.7]} 78... Kd7 {[%clk
0:00:33.6]} 79. b8=Q {[%clk 0:00:13.4]} 79... g4+ {[%clk 0:00:35.5]} 80. Kxg4
{[%clk 0:00:13.7]} 80... Ke6 {[%clk 0:00:37.4]} 81. Qb5 {[%clk 0:00:12.5]} 81...
Kf7 {[%clk 0:00:37.7]} 82. Kf5 {[%clk 0:00:13.7]} 82... Kg8 {[%clk 0:00:39.6]}
83. Qd7 {[%clk 0:00:14.5]} 83... Kh8 {[%clk 0:00:41.5]} 84. Kg6 {[%clk
0:00:16.1]} 84... Kg8 {[%clk 0:00:42.4]} 85. Qd8# {[%clk 0:00:18]} 1-0

[Event "GrandPrix_29.05"]
[Site "Chess.com"]
[Date "2020.05.29"]
[Round "6"]
[White "grzechu96"]
[Black "Sunerorlater"]
[Result "1-0"]
[WhiteElo "2523"]
[BlackElo "2283"]
[TimeControl "600+2"]
[EndTime "12:05:00 PDT"]
[Termination "grzechu96 won by resignation"]

1. e4 {[%clk 0:10:01.9]} 1... e5 {[%clk 0:10:00]} 2. Nf3 {[%clk 0:10:01.6]} 2...
Nc6 {[%clk 0:10:00.4]} 3. Bc4 {[%clk 0:09:52]} 3... Bc5 {[%clk 0:09:59.5]} 4.
O-O {[%clk 0:09:48.4]} 4... Nf6 {[%clk 0:09:59.6]} 5. d3 {[%clk 0:09:49.7]} 5...
d6 {[%clk 0:09:57.8]} 6. c3 {[%clk 0:09:50.1]} 6... O-O {[%clk 0:09:53.9]} 7. h3
{[%clk 0:09:48.9]} 7... a6 {[%clk 0:09:33.2]} 8. Bb3 {[%clk 0:09:48.1]} 8... Ba7
{[%clk 0:09:29.7]} 9. Re1 {[%clk 0:09:47.5]} 9... Kh8 {[%clk 0:09:29.6]} 10.
Nbd2 {[%clk 0:08:04.3]} 10... Ng8 {[%clk 0:09:28.4]} 11. Nf1 {[%clk 0:08:00.5]}
11... f5 {[%clk 0:09:27.3]} 12. exf5 {[%clk 0:07:21]} 12... Bxf5 {[%clk
0:09:25.9]} 13. Be3 {[%clk 0:07:22.2]} 13... Bxe3 {[%clk 0:09:12.1]} 14. Nxe3
{[%clk 0:07:24.1]} 14... Bg6 {[%clk 0:09:11.3]} 15. d4 {[%clk 0:07:17]} 15... e4
{[%clk 0:09:10]} 16. Nd2 {[%clk 0:06:58.8]} 16... Nce7 {[%clk 0:08:35.1]} 17.
Nd5 {[%clk 0:05:16.5]} 17... c6 {[%clk 0:07:43.3]} 18. Nxe7 {[%clk 0:05:03.1]}
18... Qxe7 {[%clk 0:07:44.1]} 19. Bxg8 {[%clk 0:04:11.3]} 19... Kxg8 {[%clk
0:07:42.6]} 20. f3 {[%clk 0:03:42.4]} 20... d5 {[%clk 0:07:39.7]} 21. fxe4
{[%clk 0:03:43.3]} 21... dxe4 {[%clk 0:07:36]} 22. Nc4 {[%clk 0:03:26.1]} 22...
Qh4 {[%clk 0:06:58]} 23. Qe2 {[%clk 0:03:05]} 23... Rae8 {[%clk 0:06:30]} 24.
Rf1 {[%clk 0:03:00.5]} 24... Qg3 {[%clk 0:06:08.9]} 25. Qe3 {[%clk 0:02:47.8]}
25... Qxe3+ {[%clk 0:05:51.9]} 26. Nxe3 {[%clk 0:02:49.7]} 26... b5 {[%clk
0:04:58.5]} 27. Rxf8+ {[%clk 0:02:46.7]} 27... Rxf8 {[%clk 0:04:55.5]} 28. Rf1
{[%clk 0:02:47.2]} 28... Rd8 {[%clk 0:04:37.8]} 29. Kf2 {[%clk 0:02:40.2]} 29...
a5 {[%clk 0:04:21.6]} 30. Ng4 {[%clk 0:02:11.7]} 30... Bf7 {[%clk 0:03:38.2]}
31. Ke3 {[%clk 0:02:09.9]} 31... a4 {[%clk 0:03:16.1]} 32. a3 {[%clk 0:01:42.1]}
32... Bd5 {[%clk 0:03:11.4]} 33. Rf5 {[%clk 0:01:26.3]} 33... Rd6 {[%clk
0:03:06.9]} 34. Nf2 {[%clk 0:00:43.9]} 34... Rg6 {[%clk 0:02:48.7]} 35. g4
{[%clk 0:00:45.1]} 35... Rh6 {[%clk 0:02:45.6]} 36. Rh5 {[%clk 0:00:23.3]} 36...
Re6 {[%clk 0:02:10.6]} 37. Rf5 {[%clk 0:00:18.3]} 37... Rh6 {[%clk 0:02:10.4]}
38. Rf4 {[%clk 0:00:19.6]} 38... Rh4 {[%clk 0:02:00.9]} 39. g5 {[%clk
0:00:18.8]} 39... Rh5 {[%clk 0:02:01.4]} 40. h4 {[%clk 0:00:20.1]} 40... h6
{[%clk 0:02:02.3]} 41. gxh6 {[%clk 0:00:19.3]} 41... Rxh6 {[%clk 0:02:00.9]} 42.
Nxe4 {[%clk 0:00:18.6]} 42... Re6 {[%clk 0:01:59.6]} 43. Kd3 {[%clk 0:00:20.1]}
43... Bc4+ {[%clk 0:01:54.4]} 44. Kd2 {[%clk 0:00:20]} 44... Re7 {[%clk
0:01:53]} 45. Ng3 {[%clk 0:00:17.4]} 45... Kh7 {[%clk 0:01:49.4]} 46. Re4 {[%clk
0:00:16.2]} 46... Rf7 {[%clk 0:01:49.8]} 47. Ke3 {[%clk 0:00:17.4]} 47... Bd5
{[%clk 0:01:44.4]} 48. Rf4 {[%clk 0:00:18.8]} 48... Re7+ {[%clk 0:01:44.2]} 49.
Kf2 {[%clk 0:00:18.2]} 49... Kg6 {[%clk 0:01:40.1]} 50. Nf1 {[%clk 0:00:14.7]}
50... Re8 {[%clk 0:01:28.8]} 51. Ne3 {[%clk 0:00:12.7]} 51... Be6 {[%clk
0:01:30]} 52. Re4 {[%clk 0:00:09.6]} 52... Kf6 {[%clk 0:01:24.2]} 53. Kg3 {[%clk
0:00:07.7]} 53... Rd8 {[%clk 0:00:47.1]} 54. Re5 {[%clk 0:00:08.3]} 54... Rd6
{[%clk 0:00:36.4]} 55. Ng2 {[%clk 0:00:08.5]} 55... Rd8 {[%clk 0:00:30.3]} 56.
Nf4 {[%clk 0:00:09.9]} 56... Bf7 {[%clk 0:00:31.4]} 57. Rc5 {[%clk 0:00:10.7]}
57... Rd6 {[%clk 0:00:30.4]} 58. Kg4 {[%clk 0:00:10]} 58... g6 {[%clk
0:00:29.8]} 59. Kg3 {[%clk 0:00:10]} 59... Be8 {[%clk 0:00:27.7]} 60. Re5 {[%clk
0:00:09.5]} 60... Bf7 {[%clk 0:00:28.6]} 61. Ng2 {[%clk 0:00:09.2]} 61... Be6
{[%clk 0:00:27.2]} 62. Ne3 {[%clk 0:00:10.7]} 62... Kf7 {[%clk 0:00:24.3]} 63.
Nd1 {[%clk 0:00:11]} 63... Bd5 {[%clk 0:00:21.9]} 64. Ne3 {[%clk 0:00:10.8]}
64... Be6 {[%clk 0:00:22.8]} 65. Rc5 {[%clk 0:00:09.8]} 65... Ke7 {[%clk
0:00:19.3]} 66. Kf4 {[%clk 0:00:09.8]} 66... Kf6 {[%clk 0:00:20.1]} 67. Ng4+
{[%clk 0:00:05.1]} 67... Bxg4 {[%clk 0:00:18.6]} 68. Kxg4 {[%clk 0:00:07]} 68...
Re6 {[%clk 0:00:19.9]} 69. d5 {[%clk 0:00:07.8]} 69... Re4+ {[%clk 0:00:14.9]}
70. Kg3 {[%clk 0:00:07.7]} 70... cxd5 {[%clk 0:00:15.4]} 71. Rxd5 {[%clk
0:00:08.9]} 71... Re3+ {[%clk 0:00:10.2]} 72. Kf4 {[%clk 0:00:10.3]} 72... Rh3
{[%clk 0:00:06.1]} 73. Kg4 {[%clk 0:00:11.6]} 1-0